fUSD/lending_fUSD_20250103
["ID","MTS","AMOUNT","RATE_DAILY","PERIOD"]
[347569581,1735920665176,-500.0,0.00011509,2]
[347569582,1735920665187,-500.0,0.00011509,2]
[347569583,1735920665196,-500.0,0.00011509,2]
[347569584,1735920665205,-500.0,0.00011509,2]
[347569585,1735920665215,-500.0,0.00011509,2]
[347569586,1735920665225,-552.29,0.00011509,2]
[347569587,1735920665237,-500.0,0.00011509,2]
[347569588,1735920665247,-706.83,0.00011509,2]
[347569589,1735920665256,-500.0,0.00011509,2]
[347569590,1735920665267,-500.0,0.00011509,2]
[347569591,1735920665276,-500.0,0.00011509,2]
[347569592,1735920665285,-500.0,0.00011509,2]
[347569593,1735920665295,-614.26,0.00011509,2]
[347569594,1735920665305,-500.0,0.00011509,2]
[347569595,1735920665314,-500.0,0.00011509,2]
[347569596,1735920665328,-654.15,0.00011509,2]
[347569597,1735920665337,-500.0,0.00011509,2]
[347569598,1735920665347,-500.0,0.00011509,2]
[347569599,1735920665356,-500.0,0.00011509,2]
[347569600,1735920665366,-500.0,0.00011509,2]
[347569601,1735920665375,-500.0,0.00011509,2]
[347569602,1735920665384,-500.0,0.00011509,2]
[347569603,1735920665394,-500.0,0.00011509,2]
[347569604,1735920665404,-665.42,0.00011509,2]
[347569605,1735920665415,-500.0,0.00011509,2]
[347569606,1735920665424,-500.0,0.00011509,2]
[347569607,1735920665434,-500.0,0.00011509,2]
[347569608,1735920665445,-1037.06,0.00011509,2]
[347569609,1735920665454,-500.0,0.00011509,2]
[347569610,1735920665463,-805.79,0.00011509,2]
[347569611,1735920665474,-3679.18,0.00011509,2]
[347569612,1735920665484,-500.0,0.00011509,2]
[347569613,1735920665494,-450.52480089,0.00011509,2]
[347569614,1735920665504,-500.0,0.00011509,2]
[347569615,1735920665514,-500.0,0.00011509,2]
[347569616,1735920665524,-3247.25,0.00011509,2]
[347569617,1735920665534,-342.13606293,0.00011509,2]
[347569618,1735920665543,-1890.49,0.00011509,2]
[347569619,1735920665553,-500.0,0.00011509,2]
[347569620,1735920665563,-500.0,0.00011509,2]
[347569621,1735920665574,-500.0,0.00011509,2]
[347569622,1735920665584,-1003.54,0.00011509,2]
[347569623,1735920665594,-311.40667451,0.00011509,2]
[347569624,1735920665604,-500.0,0.00011509,2]
[347569625,1735920665613,-500.0,0.00011509,2]
[347569626,1735920665623,-500.0,0.00011509,2]
[347569627,1735920665633,-500.0,0.00011509,2]
[347569628,1735920665642,-500.0,0.00011509,2]
[347569629,1735920665652,-1000.65,0.00011509,2]
[347569630,1735920665663,-500.0,0.00011509,2]
[347569631,1735920665672,-1907.21,0.00011509,2]
[347569632,1735920665681,-500.0,0.00011509,2]
[347569633,1735920665694,-500.0,0.00011509,2]
[347569634,1735920665704,-582.22,0.00011509,2]
[347569635,1735920665713,-500.0,0.00011509,2]
[347569636,1735920665722,-257.12276707,0.00011509,2]
[347569637,1735920665731,-2353.53,0.00011509,2]
[347569638,1735920665740,-1965.81,0.00011509,2]
[347569639,1735920665748,-500.0,0.00011509,2]
[347569640,1735920665758,-179.45015106,0.00011509,2]
[347569641,1735920665767,-500.0,0.00011509,2]
[347569642,1735920665776,-500.0,0.00011509,2]
[347569643,1735920665785,-500.0,0.00011509,2]
[347569644,1735920665794,-798.62,0.00011509,2]
[347569645,1735920665803,-500.0,0.00011509,2]
[347569646,1735920665811,-246.32559753,0.0001151,2]
[347569647,1735920665820,-500.0,0.0001151,2]
[347569648,1735920665829,-500.0,0.0001151,2]
[347569649,1735920665838,-500.0,0.0001151,2]
[347569650,1735920665847,-500.0,0.0001151,2]
[347569651,1735920665856,-500.0,0.0001151,2]
[347569652,1735920665865,-500.0,0.0001151,2]
[347569653,1735920665875,-576.5,0.0001151,2]
[347569654,1735920665884,-849.16,0.0001151,2]
[347569655,1735920665894,-864.54,0.0001151,2]
[347569656,1735920665903,-1768.71,0.0001151,2]
[347569657,1735920665912,-500.0,0.0001151,2]
[347569658,1735920665921,-979.98,0.0001151,2]
[347569659,1735920665930,-3231.62,0.0001151,2]
[347569660,1735920665940,-1050.79,0.0001151,2]
[347569661,1735920665949,-1684.23,0.0001151,2]
[347569662,1735920665958,-786.12,0.0001151,2]
[347569663,1735920665967,-637.46467553,0.0001151,2]
[347569664,1735920665977,-1902.76,0.0001151,2]
[347569665,1735920665985,-2214.82,0.00011511,2]
[347569666,1735920665994,-3042.37,0.00011511,2]
[347569667,1735920666003,-500.0,0.00011511,2]
[347569668,1735920666012,-630.43,0.00011511,2]
[347569669,1735920666021,-626.51,0.00011511,2]
[347569670,1735920666030,-507.2,0.00011511,2]
[347569671,1735920666040,-763.22,0.00011511,2]
[347569672,1735920666049,-500.0,0.00011511,2]
[347569673,1735920666058,-500.0,0.00011511,2]
[347569674,1735920666067,-500.0,0.00011511,2]
[347569675,1735920666076,-768.06,0.00011511,2]
[347569676,1735920666085,-213.56794153,0.00011511,2]
[347569677,1735920666094,-1863.65,0.00011511,2]
[347569678,1735920666102,-760.86,0.00011511,2]
[347569679,1735920666111,-500.0,0.00011511,2]
[347569680,1735920666120,-500.0,0.00011511,2]
[347569681,1735920666129,-500.0,0.00011511,2]
[347569682,1735920666139,-500.0,0.00011511,2]
[347569683,1735920666148,-500.0,0.00011511,2]
[347569684,1735920666157,-660.62,0.00011511,2]
[347569685,1735920666166,-1269.03,0.00011511,2]
[347569686,1735920666175,-617.59,0.00011511,2]
[347569687,1735920666184,-500.0,0.00011511,2]
[347569688,1735920666195,-1663.26,0.00011511,2]
[347569689,1735920666204,-583.96,0.00011511,2]
[347569690,1735920666214,-682.7,0.00011511,2]
[347569691,1735920666227,-1892.32,0.00011511,2]
[347569692,1735920666236,-883.1,0.00011511,2]
[347569693,1735920666246,-5813.16721221,0.00011521,2]
[347569694,1735920666255,-150.0,0.00011526,2]
[347569695,1735920666264,-771.32,0.00011534,2]
[347569696,1735920666274,-875.08,0.00011534,2]
[347569697,1735920666283,-437.44,0.00011534,2]
[347569698,1735920666293,-727.87,0.00011534,2]
[347569699,1735920666303,-500.0,0.00011545,2]
[347569700,1735920666313,-500.0,0.00011545,2]
[347569701,1735920666322,-244.43959852,0.00011545,2]
[347569702,1735920666331,-500.0,0.00011545,2]
[347569703,1735920666340,-500.0,0.00011545,2]
[347569704,1735920666350,-150.0,0.00011545,2]
[347569705,1735920666359,-2987.0,0.00011545,2]
[347569706,1735920666368,-150.0,0.00011555,2]
[347569707,1735920666378,-150.0,0.00011558,2]
[347569708,1735920666386,-150.0,0.00011583,2]
[347569709,1735920666396,-823.0,0.00011587,2]
[347569710,1735920666406,-202.7,0.000116,2]
[347569711,1735920666414,-700.0,0.000116,4]
[347569712,1735920666424,-173.26625304,0.00011604,2]
[347569713,1735920666433,-150.0,0.00011612,2]
[347569714,1735920666444,-2000.0,0.00011624,2]
[347569715,1735920666453,-200.0,0.00011624,2]
[347569716,1735920666463,-2000.0,0.00011624,2]
[347569717,1735920666473,-200.0,0.00011624,2]
[347569718,1735920666483,-3000.0,0.00011624,2]
[347569719,1735920666492,-150.0,0.00011635,2]
[347569720,1735920666502,-150.0,0.00011641,2]
[347569721,1735920666512,-150.0,0.00011643,2]
[347569722,1735920666522,-150.0,0.00011644,2]
[347569723,1735920666532,-5813.16721221,0.00011659,2]
[347569724,1735920666541,-795.16,0.00011659,2]
[347569725,1735920666551,-1708.52,0.00011659,2]
[347569726,1735920666560,-1000.0,0.00011669,2]
[347569727,1735920666569,-150.0,0.00011669,2]
[347569728,1735920666579,-500.0,0.0001167,2]
[347569729,1735920666588,-1021.03,0.0001167,2]
[347569730,1735920666598,-510.63,0.0001167,2]
[347569731,1735920666607,-722.22,0.0001167,2]
[347569732,1735920666616,-2712.06,0.0001167,2]
[347569733,1735920666627,-500.0,0.0001167,2]
[347569734,1735920666637,-500.0,0.0001167,2]
[347569735,1735920666646,-593.27,0.0001167,2]
[347569736,1735920666656,-1364.52,0.0001167,2]
[347569737,1735920666665,-500.0,0.0001167,2]
[347569738,1735920666674,-1104.94,0.0001167,2]
[347569739,1735920666685,-713.79,0.0001167,2]
[347569740,1735920666697,-953.22278579,0.00011671,2]
[347569741,1735920666707,-436.52,0.00011671,2]
[347569742,1735920666717,-150.0,0.00011671,2]
[347569743,1735920666727,-418.54,0.00011671,2]
[347569744,1735920666737,-300.0,0.00011671,2]
[347569745,1735920666748,-978.95,0.00011671,2]
[347569746,1735920666759,-150.0,0.00011671,2]
[347569747,1735920666770,-978.95,0.00011671,2]
[347569748,1735920666781,-978.95,0.00011671,2]
[347569749,1735920666792,-269.62,0.00011671,2]
[347569750,1735920666803,-163.91550222,0.0001168,2]
[347569751,1735920666813,-150.0,0.00011698,2]
[347569752,1735920666823,-700.0,0.000117,4]
[347569753,1735920666834,-1000.0,0.000117,2]
[347569754,1735920666844,-150.0,0.00011712,2]
[347569755,1735920666854,-1923.22,0.00011714,2]
[347569756,1735920666864,-641.65,0.00011714,2]
[347569757,1735920666874,-853.81,0.00011714,2]
[347569758,1735920666884,-863.63,0.00011714,2]
[347569759,1735920666893,-500.0,0.00011714,2]
[347569760,1735920666904,-1372.66,0.00011714,2]
[347569761,1735920666914,-628.67,0.00011714,2]
[347569762,1735920666924,-500.0,0.00011714,2]
[347569763,1735920666934,-150.0,0.00011727,2]
[347569764,1735920666948,-2000.0,0.0001174,2]
[347569765,1735920666958,-200.0,0.0001174,2]
[347569766,1735920666968,-2000.0,0.0001174,2]
[347569767,1735920666977,-200.0,0.0001174,2]
[347569768,1735920666987,-150.0,0.00011755,2]
[347569769,1735920666997,-544.39,0.0001178,2]
[347569770,1735920667006,-2256.21,0.0001178,2]
[347569771,1735920667017,-185077.89418086,0.0001178,7]
[347569772,1735920667026,-150.0,0.0001178,2]
[347569773,1735920667035,-150.0,0.00011781,2]
[347569774,1735920667045,-768.1,0.00011782,2]
[347569775,1735920667055,-500.0,0.00011782,2]
[347569776,1735920667065,-500.0,0.00011782,2]
[347569777,1735920667075,-788.1,0.00011782,2]
[347569778,1735920667084,-1734.99,0.00011782,2]
[347569779,1735920667095,-718.74,0.00011782,2]
[347569780,1735920667104,-960.66,0.00011782,2]
[347569781,1735920667114,-630.4,0.00011782,2]
[347569782,1735920667125,-1183.72,0.00011782,2]
[347569783,1735920667135,-1067.386128,0.00011782,2]
[347569784,1735920667144,-153.754165,0.00011782,2]
[347569785,1735920667155,-635.82,0.00011782,2]
[347569786,1735920667166,-1176.65,0.00011782,2]
[347569787,1735920667176,-1791.62,0.00011782,2]
[347569788,1735920667186,-1424.784331,0.00011782,2]
[347569789,1735920667197,-519.25,0.00011782,2]
[347569790,1735920667207,-1520.01,0.00011782,2]
[347569791,1735920667217,-500.0,0.00011782,2]
[347569792,1735920667230,-172.20639788,0.00011782,2]
[347569793,1735920667240,-500.0,0.00011782,2]
[347569794,1735920667249,-500.0,0.00011782,2]
[347569795,1735920667259,-567.12,0.00011782,2]
[347569796,1735920667271,-500.0,0.00011782,2]
[347569797,1735920667281,-500.0,0.00011783,2]
[347569798,1735920667292,-500.0,0.00011783,2]
[347569799,1735920667302,-500.0,0.00011783,2]
[347569800,1735920667314,-500.0,0.00011783,2]
[347569801,1735920667323,-500.0,0.00011783,2]
[347569802,1735920667334,-604.01,0.00011783,2]
[347569803,1735920667343,-500.0,0.00011783,2]
[347569804,1735920667354,-500.0,0.00011783,2]
[347569805,1735920667364,-500.0,0.00011783,2]
[347569806,1735920667373,-500.0,0.00011783,2]
[347569807,1735920667383,-500.0,0.00011783,2]
[347569808,1735920667393,-500.0,0.00011783,2]
[347569809,1735920667403,-500.0,0.00011783,2]
[347569810,1735920667413,-500.0,0.00011783,2]
[347569811,1735920667423,-500.0,0.00011783,2]
[347569812,1735920667433,-500.0,0.00011783,2]
[347569813,1735920667446,-500.0,0.00011783,2]
[347569814,1735920667455,-500.0,0.00011783,2]
[347569815,1735920667465,-500.0,0.00011783,2]
[347569816,1735920667475,-500.0,0.00011783,2]
[347569817,1735920667486,-198.16881184,0.00011783,2]
[347569818,1735920667498,-552.29,0.00011783,2]
[347569819,1735920667508,-500.0,0.00011783,2]
[347569820,1735920667518,-706.83,0.00011783,2]
[347569821,1735920667528,-500.0,0.00011783,2]
[347569822,1735920667537,-500.0,0.00011783,2]
[347569823,1735920667547,-500.0,0.00011783,2]
[347569824,1735920667557,-500.0,0.00011783,2]
[347569825,1735920667567,-614.26,0.00011783,2]
[347569826,1735920667575,-500.0,0.00011783,2]
[347569827,1735920667585,-500.0,0.00011783,2]
[347569828,1735920667595,-654.15,0.00011783,2]
[347569829,1735920667605,-500.0,0.00011783,2]
[347569830,1735920667614,-500.0,0.00011783,2]
[347569831,1735920667624,-500.0,0.00011783,2]
[347569832,1735920667634,-500.0,0.00011783,2]
[347569833,1735920667643,-500.0,0.00011783,2]
[347569834,1735920667653,-500.0,0.00011783,2]
[347569835,1735920667663,-500.0,0.00011783,2]
[347569836,1735920667672,-665.42,0.00011783,2]
[347569837,1735920667682,-419.49493472,0.00011783,2]
[347569838,1735920667693,-500.0,0.00011783,2]
[347569839,1735920667703,-500.0,0.00011783,2]
[347569840,1735920667712,-1037.06,0.00011783,2]
[347569841,1735920667722,-500.0,0.00011783,2]
[347569842,1735920667731,-805.79,0.00011783,2]
[347569843,1735920667741,-3679.18,0.00011783,2]
[347569844,1735920667751,-500.0,0.00011783,2]
[347569845,1735920667760,-528.57261554,0.00011783,2]
[347569846,1735920667770,-500.0,0.00011783,2]
[347569847,1735920667779,-3247.25,0.00011783,2]
[347569848,1735920667789,-1890.49,0.00011783,2]
[347569849,1735920667799,-500.0,0.00011783,2]
[347569850,1735920667809,-500.0,0.00011783,2]
[347569851,1735920667818,-500.0,0.00011783,2]
[347569852,1735920667828,-1003.54,0.00011783,2]
[347569853,1735920667838,-500.0,0.00011783,2]
[347569854,1735920667847,-500.0,0.00011783,2]
[347569855,1735920667857,-322.31647302,0.00011783,2]
[347569856,1735920667866,-500.0,0.00011783,2]
[347569857,1735920667876,-500.0,0.00011783,2]
[347569858,1735920667885,-1000.65,0.00011783,2]
[347569859,1735920667895,-500.0,0.00011783,2]
[347569860,1735920667905,-1907.21,0.00011783,2]
[347569861,1735920667915,-500.0,0.00011783,2]
[347569862,1735920667924,-500.0,0.00011783,2]
[347569863,1735920667934,-582.22,0.00011783,2]
[347569864,1735920667945,-605.43105594,0.00011783,2]
[347569865,1735920667954,-2353.53,0.00011783,2]
[347569866,1735920667964,-1965.81,0.00011783,2]
[347569867,1735920667974,-500.0,0.00011783,2]
[347569868,1735920667985,-500.0,0.00011783,2]
[347569869,1735920667994,-500.0,0.00011783,2]
[347569870,1735920668004,-500.0,0.00011783,2]
[347569871,1735920668014,-798.62,0.00011783,2]
[347569872,1735920668023,-500.0,0.00011783,2]
[347569873,1735920668033,-500.0,0.00011784,2]
[347569874,1735920668043,-500.0,0.00011784,2]
[347569875,1735920668053,-500.0,0.00011784,2]
[347569876,1735920668063,-500.0,0.00011784,2]
[347569877,1735920668073,-500.0,0.00011784,2]
[347569878,1735920668083,-500.0,0.00011784,2]
[347569879,1735920668094,-576.5,0.00011784,2]
[347569880,1735920668104,-849.16,0.00011784,2]
[347569881,1735920668114,-864.54,0.00011784,2]
[347569882,1735920668124,-1768.71,0.00011784,2]
[347569883,1735920668134,-500.0,0.00011784,2]
[347569884,1735920668145,-979.98,0.00011784,2]
[347569885,1735920668155,-3231.62,0.00011784,2]
[347569886,1735920668165,-1050.79,0.00011784,2]
[347569887,1735920668175,-1684.23,0.00011784,2]
[347569888,1735920668186,-786.12,0.00011784,2]
[347569889,1735920668197,-1902.76,0.00011784,2]
[347569890,1735920668207,-150.0,0.00011784,2]
[347569891,1735920668216,-2214.82,0.00011785,2]
[347569892,1735920668227,-3042.37,0.00011785,2]
[347569893,1735920668240,-500.0,0.00011785,2]
[347569894,1735920668250,-630.43,0.00011785,2]
[347569895,1735920668261,-626.51,0.00011785,2]
[347569896,1735920668271,-507.2,0.00011785,2]
[347569897,1735920668282,-763.22,0.00011785,2]
[347569898,1735920668292,-500.0,0.00011785,2]
[347569899,1735920668302,-500.0,0.00011785,2]
[347569900,1735920668312,-500.0,0.00011785,2]
[347569901,1735920668323,-768.06,0.00011785,2]
[347569902,1735920668333,-1863.65,0.00011785,2]
[347569903,1735920668343,-760.86,0.00011785,2]
[347569904,1735920668353,-500.0,0.00011785,2]
[347569905,1735920668363,-500.0,0.00011785,2]
[347569906,1735920668373,-500.0,0.00011785,2]
[347569907,1735920668383,-500.0,0.00011785,2]
[347569908,1735920668395,-351.48342776,0.00011785,2]
[347569909,1735920668405,-660.62,0.00011785,2]
[347569910,1735920668415,-1269.03,0.00011785,2]
[347569911,1735920668425,-617.59,0.00011785,2]
[347569912,1735920668435,-500.0,0.00011785,2]
[347569913,1735920668448,-1663.26,0.00011785,2]
[347569914,1735920668458,-583.96,0.00011785,2]
[347569915,1735920668468,-682.7,0.00011785,2]
[347569916,1735920668479,-1892.32,0.00011785,2]
[347569917,1735920668490,-883.1,0.00011785,2]
[347569918,1735920668500,-150.0,0.00011789,2]
[347569919,1735920668511,-5813.16721221,0.00011797,2]
[347569920,1735920668521,-163.91550218,0.000118,2]
[347569921,1735920668532,-700.0,0.000118,4]
[347569922,1735920668542,-150.0,0.00011813,2]
[347569923,1735920668552,-661.62443639,0.00011819,2]
[347569924,1735920668562,-600.51581834,0.00011819,2]
[347569925,1735920668574,-500.0,0.00011819,2]
[347569926,1735920668585,-500.0,0.00011819,2]
[347569927,1735920668598,-2987.0,0.00011819,2]
[347569928,1735920668609,-150.0,0.00011822,2]
[347569929,1735920668619,-150.0,0.00011841,2]
[347569930,1735920668630,-12572.84560451,0.00011855,2]
[347569931,1735920668640,-2000.0,0.00011858,2]
[347569932,1735920668649,-200.0,0.00011858,2]
[347569933,1735920668660,-2000.0,0.00011858,2]
[347569934,1735920668671,-200.0,0.00011858,2]
[347569935,1735920668681,-150.0,0.00011866,2]
[347569936,1735920668692,-150.0,0.0001187,2]
[347569937,1735920668702,-150.0,0.0001188,2]
[347569938,1735920668712,-15634.04744341,0.0001189,2]
[347569939,1735920668722,-150.0,0.00011899,2]
[347569940,1735920668732,-1000.0,0.00011899,2]
[347569941,1735920668742,-700.0,0.000119,4]
[347569942,1735920668752,-1057.0,0.00011915,2]
[347569943,1735920668762,-152.0,0.00011917,6]
[347569944,1735920668772,-150.0,0.00011917,2]
[347569945,1735920668781,-150.0,0.00011918,2]
[347569946,1735920668791,-163.91550218,0.0001192,2]
[347569947,1735920668801,-150.0,0.00011927,2]
[347569948,1735920668811,-795.16,0.00011933,2]
[347569949,1735920668821,-1708.52,0.00011933,2]
[347569950,1735920668830,-5813.16721221,0.00011934,2]
[347569951,1735920668840,-150.0,0.00011943,2]
[347569952,1735920668850,-500.0,0.00011944,2]
[347569953,1735920668860,-1021.03,0.00011944,2]
[347569954,1735920669082,-510.63,0.00011944,2]
[347569955,1735920669101,-722.22,0.00011944,2]
[347569956,1735920669111,-2712.06,0.00011944,2]
[347569957,1735920669120,-500.0,0.00011944,2]
[347569958,1735920669130,-500.0,0.00011944,2]
[347569959,1735920669139,-593.27,0.00011944,2]
[347569960,1735920669149,-1364.52,0.00011944,2]
[347569961,1735920669158,-500.0,0.00011944,2]
[347569962,1735920669167,-1104.94,0.00011944,2]
[347569963,1735920669177,-713.79,0.00011944,2]
[347569964,1735920669187,-150.0,0.00011956,2]
[347569965,1735920669198,-150.0,0.00011961,2]
[347569966,1735920669207,-1688.0,0.00011973,2]
[347569967,1735920669216,-1711.0,0.00011973,2]
[347569968,1735920669226,-2000.0,0.00011976,2]
[347569969,1735920669241,-200.0,0.00011976,2]
[347569970,1735920669250,-2000.0,0.00011976,2]
[347569971,1735920669260,-200.0,0.00011976,2]
[347569972,1735920669270,-150.0,0.00011985,2]
[347569973,1735920669282,-1923.22,0.00011988,2]
[347569974,1735920669291,-641.65,0.00011988,2]
[347569975,1735920669301,-853.81,0.00011988,2]
[347569976,1735920669313,-863.63,0.00011988,2]
[347569977,1735920669324,-500.0,0.00011988,2]
[347569978,1735920669334,-1372.66,0.00011988,2]
[347569979,1735920669343,-628.67,0.00011988,2]
[347569980,1735920669353,-500.0,0.00011988,2]
[347569981,1735920669362,-3758.25,0.00011999,2]
[347569982,1735920669372,-5000.87,0.00012,2]
[347569983,1735920669382,-8103.49132669,0.00012,2]
[347569984,1735920669391,-1003.711,0.00012,2]
[347569985,1735920669401,-500.0,0.00012,2]
[347569986,1735920669411,-2999.99,0.00012,2]
[347569987,1735920669421,-3004.25,0.00012,2]
[347569988,1735920669430,-3000.0,0.00012,2]
[347569989,1735920669442,-3000.0,0.00012,2]
[347569990,1735920669451,-1312.64,0.00012,2]
[347569991,1735920669460,-3000.0,0.00012,2]
[347569992,1735920669471,-18809.15626405,0.00012,2]
[347569993,1735920669484,-10000.0,0.00012,2]
[347569994,1735920669496,-300.0,0.00012,2]
[347569995,1735920669506,-638.05120955,0.00012,2]
[347569996,1735920669515,-1216.699,0.00012,2]
[347569997,1735920669524,-299.0213151,0.00012,4]
[347569998,1735920669534,-50000.0,0.00012,2]
[347569999,1735920669543,-8000.0,0.00012,2]
[347570000,1735920669552,-200.000001,0.00012,2]
[347570001,1735920669562,-450.0,0.00012,2]
[347570002,1735920669572,-450.0,0.00012,2]
[347570003,1735920669585,-150.0,0.00012013,2]
[347570004,1735920669595,-150.0,0.00012021,2]
[347570005,1735920669605,-953.22278579,0.00012035,2]
[347570006,1735920669615,-163.91550218,0.0001204,2]
[347570007,1735920669625,-150.0,0.00012042,2]
[347570008,1735920669634,-544.39,0.00012054,2]
[347570009,1735920669644,-2256.21,0.00012054,2]
[347570010,1735920669654,-150.0,0.00012054,2]
[347570011,1735920669663,-150.0,0.00012055,2]
[347570012,1735920669673,-45205.41,0.00012055,2]
[347570013,1735920669683,-768.1,0.00012056,2]
[347570014,1735920669695,-500.0,0.00012056,2]
[347570015,1735920669705,-500.0,0.00012056,2]
[347570016,1735920669714,-788.1,0.00012056,2]
[347570017,1735920669724,-1734.99,0.00012056,2]
[347570018,1735920669734,-718.74,0.00012056,2]
[347570019,1735920669744,-960.66,0.00012056,2]
[347570020,1735920669753,-630.4,0.00012056,2]
[347570021,1735920669763,-1183.72,0.00012056,2]
[347570022,1735920669773,-1067.386128,0.00012056,2]
[347570023,1735920669783,-635.82,0.00012056,2]
[347570024,1735920669792,-1176.65,0.00012056,2]
[347570025,1735920669801,-1791.62,0.00012056,2]
[347570026,1735920669811,-1424.784331,0.00012056,2]
[347570027,1735920669821,-519.25,0.00012056,2]
[347570028,1735920669831,-1520.01,0.00012056,2]
[347570029,1735920669841,-500.0,0.00012056,2]
[347570030,1735920669851,-500.0,0.00012056,2]
[347570031,1735920669861,-500.0,0.00012056,2]
[347570032,1735920669871,-567.12,0.00012056,2]
[347570033,1735920669881,-500.0,0.00012056,2]
[347570034,1735920669891,-500.0,0.00012057,2]
[347570035,1735920669900,-500.0,0.00012057,2]
[347570036,1735920669910,-500.0,0.00012057,2]
[347570037,1735920669919,-500.0,0.00012057,2]
[347570038,1735920669929,-500.0,0.00012057,2]
[347570039,1735920669941,-604.01,0.00012057,2]
[347570040,1735920669951,-500.0,0.00012057,2]
[347570041,1735920669960,-500.0,0.00012057,2]
[347570042,1735920669970,-466.99558137,0.00012057,2]
[347570043,1735920669980,-500.0,0.00012057,2]
[347570044,1735920669991,-500.0,0.00012057,2]
[347570045,1735920670000,-500.0,0.00012057,2]
[347570046,1735920670010,-500.0,0.00012057,2]
[347570047,1735920670020,-500.0,0.00012057,2]
[347570048,1735920670031,-240.46831273,0.00012057,2]
[347570049,1735920670041,-346.77140421,0.00012057,2]
[347570050,1735920670051,-500.0,0.00012057,2]
[347570051,1735920670060,-500.0,0.00012057,2]
[347570052,1735920670070,-500.0,0.00012057,2]
[347570053,1735920670080,-500.0,0.00012057,2]
[347570054,1735920670090,-552.29,0.00012057,2]
[347570055,1735920670100,-500.0,0.00012057,2]
[347570056,1735920670110,-706.83,0.00012057,2]
[347570057,1735920670119,-500.0,0.00012057,2]
[347570058,1735920670129,-500.0,0.00012057,2]
[347570059,1735920670139,-215.68519057,0.00012057,2]
[347570060,1735920670148,-500.0,0.00012057,2]
[347570061,1735920670158,-614.26,0.00012057,2]
[347570062,1735920670167,-500.0,0.00012057,2]
[347570063,1735920670177,-500.0,0.00012057,2]
[347570064,1735920670187,-654.15,0.00012057,2]
[347570065,1735920670199,-500.0,0.00012057,2]
[347570066,1735920670208,-500.0,0.00012057,2]
[347570067,1735920670219,-500.0,0.00012057,2]
[347570068,1735920670233,-347.01528159,0.00012057,2]
[347570069,1735920670243,-264.58419678,0.00012057,2]
[347570070,1735920670253,-500.0,0.00012057,2]
[347570071,1735920670262,-665.42,0.00012057,2]
[347570072,1735920670272,-500.0,0.00012057,2]
[347570073,1735920670281,-500.0,0.00012057,2]
[347570074,1735920670291,-500.0,0.00012057,2]
[347570075,1735920670301,-1037.06,0.00012057,2]
[347570076,1735920670310,-500.0,0.00012057,2]
[347570077,1735920670321,-805.79,0.00012057,2]
[347570078,1735920670331,-3679.18,0.00012057,2]
[347570079,1735920670341,-500.0,0.00012057,2]
[347570080,1735920670351,-291.54320986,0.00012057,2]